Cogmind - Beta 12 @@@ ROGUE MODE // 2023.11.20 @ 09:47:53 Player: epb Result: Core destroyed Performance ------------- Evolutions (2) 1000 Regions Visited (3) 600 Robots Destroyed (26) 130 Value Destroyed (740) 740 Prototype IDs (3) 60 Alien Tech Used (0) 0 Bonus (200) 200 TOTAL SCORE: 2730 Bonus ------- Pacifist 200 Cogmind --------- Core Integrity 0/550 Matter 191/300 Energy 100/100 System Corruption 0% Temperature Cool (0) Movement Core (50) Location -8/Materials Parts ------- > --- POWER (2) -------- (None) > --- PROPULSION (4) --- (None) > --- UTILITY (3) ------ (None) > --- WEAPON (2) ------- (None) > --- INVENTORY (5) ---- Light Ion Engine Reinforced Ion Engine Enhanced Nuclear Core Peak State ------------ > --- POWER ------------ Improved Deuterium Engine Enhanced Nuclear Core > --- PROPULSION ------- Aluminum Leg Aluminum Leg Improved Aluminum Leg Improved Carbon-fiber Leg > --- UTILITY ---------- Small Storage Unit Improved Sensor Array Improved Light Armor Plating > --- WEAPON ----------- Lightning Gun Katana > --- INVENTORY -------- Light Ion Engine Light Ion Engine Improved Ion Engine Reinforced Ion Engine Enhanced Nuclear Core Enhanced Nuclear Core Gauss Rifle Mini Grenade Launcher [Rating: 33] Favorites ----------- Power Light Ion Engine Engine Light Ion Engine Power Core Enhanced Nuclear Core Propulsion Improved Aluminum Leg Leg Improved Aluminum Leg Utility Small Storage Unit Device Improved Sensor Array Storage Small Storage Unit Protection Improved Light Armor Plating Weapon Medium Laser Energy Gun Medium Laser Ballistic Gun Autogun Launcher Mini Grenade Launcher Slashing Weapon Katana Build | -11 -10 -9 -8 ------- Run | Jun Mat Mat Mat Slots Evolved 4 | . . 2 2 Power 1 | . . . 1 Propulsion 2 | . . 2 . Utility 1 | . . . 1 Weapon . | . . . . Parts Attached 44 | 6 3 20 15 Power 9 | 1 . 2 6 Engine 6 | 1 . 2 3 Core 3 | . . . 3 Reactor . | . . . . Propulsion 16 | 2 2 10 2 Treads . | . . . . Leg 16 | 2 2 10 2 Wheel . | . . . . Hover . | . . . . Flight . | . . . . Utility 4 | 1 . 1 2 Device 2 | . . 1 1 Storage 1 | 1 . . . Processor . | . . . . Hackware . | . . . . Protection 1 | . . . 1 Artifact . | . . . . Weapon 15 | 2 1 7 5 Energy Gun 5 | 2 . 2 1 Energy Cannon . | . . . . Ballistic Gun 7 | . 1 5 1 Ballistic Cannon . | . . . . Launcher 1 | . . . 1 Special Weapon . | . . . . Impact Weapon . | . . . . Slashing Weapon 2 | . . . 2 Piercing Weapon . | . . . . Special Melee Weapon . | . . . . Unidentified Prototypes 1 | . . . 1 Parts Lost 20 | . . 4 16 Power 3 | . . . 3 Propulsion 7 | . . 1 6 Utility 4 | . . 1 3 Weapon 6 | . . 2 4 Highest Loss Streak 11 | . . 3 11 To Critical Strikes 1 | . . . 1 Average Slot Usage (%) 88 | . 85 91 86 Engine 9 | . 14 11 6 Core 4 | . . . 9 Leg 36 | . 28 42 31 Device 5 | . . 5 8 Storage 9 | . 14 11 7 Protection 3 | . . . 7 Energy Gun 8 | . 18 10 4 Ballistic Gun 7 | . 9 10 2 Slashing Weapon 3 | . . . 7 Naked Turns 30 | . . . 30 Heaviest Build 33 | 12 13 20 33 Greatest Support 58 | 20 26 58 58 Greatest Overweight (x) 4 | . . 1 4 Average Overweight (x) . | . . . . Largest Inventory Capacity 8 | 8 8 8 8 Average Capacity 7 | 6 8 8 7 Most Carried 8 | 2 8 7 8 Average Carried 5 | . 5 5 6 Final Capacity 8 | 8 8 8 5 Final Carried 8 | 2 8 5 3 Class Distribution -------------------- 100% | Mutant Dominant Class ---------------- Mutant | -10/Materials Mutant | -9/Materials Mutant | -8/Materials Resources | -11 -10 -9 -8 ----------- Run | Jun Mat Mat Mat Matter Collected 748 | 217 . 315 216 Remotely . | . . . . Salvage Created 1025 | . . 503 522 Parts 58 | . . 22 36 Haulers Intercepted 1 | . . . 1 Recyclers Shooed . | . . . . Parts Field Recycled . | . . . . Retrieved Matter . | . . . . Parts Self-Destructed . | . . . . Prevented . | . . . . Kills | -11 -10 -9 -8 ------- Run | Jun Mat Mat Mat Combat Hostiles Destroyed 18 | . . 12 6 Melee 4 | . . . 4 Guns 12 | . . 12 . AOE 2 | . . . 2 Classes Destroyed 11 | . . 5 6 Worker 3 | . . . 3 Builder 2 | . . . 2 Hauler 1 | . . . 1 Recycler 2 | . . . 2 Swarmer 3 | . . 3 . Grunt 5 | . . 3 2 Brawler 1 | . . 1 . Duelist 1 | . . 1 . Sentry 5 | . . 4 1 Specialist 2 | . . . 2 Hunter 1 | . . . 1 Best Kill Streak 9 | . . 3 9 Combat Bots Only 3 | . . 3 2 Max Kills in Single Turn 4 | . . 1 4 Gunslinging . | . . . . Exploded 1 | . . . 1 Melee 1 | . . . 1 Uniques/NPCs Destroyed . | . . . . Combat | -11 -10 -9 -8 -------- Run | Jun Mat Mat Mat Damage Taken 2510 | . . 800 1710 Core 709 | . . 159 550 Absorbed by Shields . | . . . . Core Remaining (%) 86 | 100 100 60 . Volleys Fired 63 | . . 49 14 Largest 2 | . . 2 2 Hottest 73 | . . 73 58 Shots Fired 110 | . . 88 22 Gun 101 | . . 88 13 Cannon . | . . . . Launcher 9 | . . . 9 Special . | . . . . Kinetic 51 | . . 42 9 Thermal 33 | . . 33 . Explosive 9 | . . . 9 Electromagnetic 17 | . . 13 4 Robot Hit Streak 8 | . . 8 8 Robot Miss Streak 5 | . . 4 5 Penetration Max . | . . . . Secondary Targets . | . . . . Shots Hit Robots 85 | . . 56 29 Core Hits 46 | . . 22 24 Critical Kills . | . . . . Critical Parts Destroyed . | . . . . Critical Strikes 3 | . . 2 1 Burn 2 | . . 2 . Sever 1 | . . . 1 Melee Attacks 18 | . . . 18 Impact . | . . . . Slashing 18 | . . . 18 Piercing . | . . . . Sneak Attacks 2 | . . . 2 Combat Hostiles . | . . . . Follow-up Attacks . | . . . . Damage Inflicted 1927 | . . 702 1225 Guns 916 | . . 702 214 Cannons . | . . . . Explosions 510 | . . . 510 Melee 488 | . . . 488 Ramming 13 | . . . 13 Kinetic 500 | . . 350 150 Thermal 259 | . . 259 . Explosive 510 | . . . 510 Electromagnetic 157 | . . 93 64 Impact . | . . . . Slashing 488 | . . . 488 Piercing . | . . . . Highest Corruption 4 | . . 4 . Average Corruption 4 | . . 4 . Corruption Purged . | . . . . Corruption Blocked . | . . . . Effects 9 | . . 9 . Message Errors 2 | . . 2 . Matter Fused 2 | . . 2 . Parts Rejected 1 | . . 1 . Data Loss (minor) 1 | . . 1 . Misfires 2 | . . 2 . Weapon Failures 1 | . . 1 . Overload Shots . | . . . . Overflow Damage 42 | . . . 42 Projectiles . | . . . . Explosions 24 | . . . 24 Melee 18 | . . . 18 Knockbacks . | . . . . Impact . | . . . . Kinetic . | . . . . Secondary . | . . . . Self-Inflicted Damage 6 | . . . 6 Shots . | . . . . Rammed 2 | . . . 2 Targets Rammed 2 | . . . 2 Kicked . | . . . . Crushed . | . . . . Highest Temperature 149 | . . 149 104 Average Temperature 52 | . . 57 30 Received Heat Transfer 546 | . . 198 348 Siege Activations . | . . . . Robots Corrupted . | . . . . Combat Hostiles . | . . . . Parts Fried . | . . . . Impact Corruptions . | . . . . Robots Melted . | . . . . Combat Hostiles . | . . . . Parts Melted 2 | . . 2 . Heat Transferred 925 | . . 925 . Parts Sabotaged . | . . . . Parts Stolen . | . . . . Parts Stripped . | . . . . Power Chain Reactions . | . . . . Missiles Intercepted . | . . . . Alert | -11 -10 -9 -8 ------- Run | Jun Mat Mat Mat Peak Influence 312 | . 5 312 154 Initial 74 | . . 1 74 Average 77 | . 1 104 71 Maximum Alert Level 1 | . . 1 . Low Security (%) 92 | 100 100 84 100 Level 1 7 | . . 15 . Level 2 . | . . . . Level 3 . | . . . . Level 4 . | . . . . Level 5 . | . . . . High Security . | . . . . Max Security . | . . . . Squads Dispatched 4 | . . . 4 Investigation 1 | . . . 1 Extermination . | . . . . Reinforcement 3 | . . . 3 Assault . | . . . . Garrison . | . . . . Intercept . | . . . . Searches Triggered . | . . . . Construction Impeded . | . . . . Haulers Reinforced . | . . . . Active Scanning Responses . | . . . . Cargo Convoy Interrupts . | . . . . Stealth | -11 -10 -9 -8 --------- Run | Jun Mat Mat Mat Distress Signals 1 | . . 1 . Communications Jammed . | . . . . Distress Signals . | . . . . Times Spotted 50 | . . 25 25 Peak Tracking Total 16 | . . 6 16 Tactical Retreats 2 | . . 1 1 Traps | -11 -10 -9 -8 ------- Run | Jun Mat Mat Mat Traps Triggered 5 | . . 4 1 Indirectly . | . . . . Trap Hack Attempts . | . . . . Triggered . | . . . . Disarmed . | . . . . Reprogrammed . | . . . . Reused . | . . . . Traps Extracted . | . . . . Installed . | . . . . Triggered . | . . . . Machines | -11 -10 -9 -8 ---------- Run | Jun Mat Mat Mat Machines Disabled . | . . . . Max in Single Turn . | . . . . Machines Repaired . | . . . . Machines Sabotaged . | . . . . Overloaded Fab Kills . | . . . . Hacking | -11 -10 -9 -8 --------- Run | Jun Mat Mat Mat Machines Accessed 9 | . 3 4 2 Terminals 9 | . 3 4 2 Fabricators . | . . . . Repair Stations . | . . . . Recycling Units . | . . . . Scanalyzers . | . . . . Garrison Access . | . . . . Total Hacks 19 | . 5 9 5 Successful 7 | . 1 4 2 Failed 12 | . 4 5 3 Catastrophic 1 | . . 1 . Database Lockouts . | . . . . Manual . | . . . . Terminals 19 | . 5 9 5 Fabricators . | . . . . Repair Stations . | . . . . Recycling Units . | . . . . Scanalyzers . | . . . . Garrison Access . | . . . . Terminal Hacks 7 | . 1 4 2 Record 1 | . . 1 . Prototype ID Bank 1 | . . 1 . Terminal Index 1 | . . . 1 Alert Level 1 | . . . 1 Hauler Manifests 1 | . 1 . . Registered Components 1 | . . 1 . Zone Layout 1 | . . 1 . Fabricator Hacks . | . . . . Repair Station Hacks . | . . . . Recycling Unit Hacks . | . . . . Scanalyzer . | . . . . Garrison Access Hacks . | . . . . Unauthorized Hacks . | . . . . Terminals . | . . . . Fabricators . | . . . . Repair Stations . | . . . . Recycling Units . | . . . . Scanalyzers . | . . . . Garrison Access . | . . . . Data Cores Recovered . | . . . . Used . | . . . . Hacking Detections 7 | . 2 3 2 Full Trace Events . | . . . . Feedback Events . | . . . . Feedback Blocked . | . . . . Robot Schematics Acquired . | . . . . Robots Built . | . . . . Authchips . | . . . . Time . | . . . . Total Robot Build Rating . | . . . . Part Schematics Acquired . | . . . . Parts Built . | . . . . Authchips . | . . . . Time . | . . . . Total Part Build Rating . | . . . . Parts Repaired . | . . . . Time . | . . . . Parts Recycled . | . . . . Recycled Matter . | . . . . Retrieved Matter . | . . . . Retrieved Components . | . . . . Parts Scanalyzed . | . . . . Part Schematics Acquired . | . . . . Parts Damaged . | . . . . Bothacking | -11 -10 -9 -8 ------------ Run | Jun Mat Mat Mat Used RIF Installer . | . . . . Robots Hacked . | . . . . Non-combat . | . . . . Combat . | . . . . Robot Hacks Applied . | . . . . Relay Couplers Released . | . . . . Fabnet Peak Effective % . | . . . . Robots Rewired . | . . . . Allies Hacked . | . . . . Hacks Repelled . | . . . . Allies | -11 -10 -9 -8 -------- Run | Jun Mat Mat Mat Total Allies . | . . . . Largest Group . | . . . . Highest-Rated Group . | . . . . Highest-Rated Ally . | . . . . Total Orders . | . . . . Ally Attacks . | . . . . Total Damage . | . . . . Kills . | . . . . Allies Corrupted . | . . . . Allies Melted . | . . . . Intel | -11 -10 -9 -8 ------- Run | Jun Mat Mat Mat Robot Analysis Total . | . . . . Derelict Logs Recovered . | . . . . Drone Launches . | . . . . Drone Recoveries . | . . . . Exploration | -11 -10 -9 -8 ------------- Run | Jun Mat Mat Mat Turns Passed 1837 | 78 180 850 729 Spaces Moved 1164 | 59 142 523 440 Core 71 | 4 . 2 65 Treads . | . . . . Legs 1093 | 55 142 521 375 Wheels . | . . . . Hover . | . . . . Flight . | . . . . Fastest Speed 50 | 50 120 50 50 Average Speed 117 | 115 120 119 113 Slowest Speed 250 | 120 120 120 250 Overloaded Moves . | . . . . Propulsion Burnouts . | . . . . Robots Hopped . | . . . . Cave-ins Triggered . | . . . . Exploration Rate (%) 25 | 5 23 41 34 Regions Visited 3 Branch Regions . Pre-discovered Areas . | . . . . Known Exits Taken . | . . . . Unknown Exits Taken 3 | 1 1 1 . Scrap Searched . | . . . . Spaces Dug . | . . . . Terrain Destroyed 31 | . . . 31 Melee . | . . . . Projectile . | . . . . AOE 31 | . . . 31 Terrain Rammed . | . . . . Walls Destroyed . | . . . . Machines Disabled . | . . . . Actions | -11 -10 -9 -8 --------- Run | Jun Mat Mat Mat Total 1492 | 66 150 657 619 Wait 181 | . . 61 120 Move 1161 | 58 141 522 440 Hop . | . . . . Pick Up 18 | 2 6 4 6 Fast Attach 25 | 6 . 13 6 Attach 10 | . . 6 4 Detach . | . . . . Swap 10 | . 3 1 6 Drop 5 | . . 1 4 Fire 63 | . . 49 14 Melee 18 | . . . 18 Ram 1 | . . . 1 Kick . | . . . . Crush . | . . . . Escape Stasis . | . . . . Rewire . | . . . . Trap . | . . . . Miscellaneous . | . . . . Route ------- -11/Junkyard -10/Materials -9/Materials -8/Materials History --------- Turn | Location | Event 54 | -11/Junkyard | Discovered new exit (range 13) 79 | -11/Junkyard | Entered Materials 245 | -10/Materials | Discovered new exit (range 12) 259 | -10/Materials | Entered another Materials area 259 | -9/Materials | Evolved 2 slots: Propulsion x2 300 | -9/Materials | Build established: Mutant 559 | -9/Materials | Discovered new exit (range 15) 923 | -9/Materials | Lost 3 parts (1n2w) 1109 | -9/Materials | Entered another Materials area 1109 | -8/Materials | Evolved 2 slots: Power x1, Utility x1 1821 | -8/Materials | Core integrity fell below 50% 1828 | -8/Materials | Core integrity fell below 20% 1838 | -8/Materials | Core destroyed Last Messages --------------- 01790_ U-05 Engineer builds a Wall. 01794_ Penetrated by Slug. 01794_ Imp. Sensor Array destroyed. 01794_ Knocked back. 01795_ U-05 Engineer lays Concrete. 01799_ Katana destroyed. 01799_ Knocked back. 01799_ U-05 Engineer lays Concrete. 01805_ U-05 Engineer builds a Wall. 01807_ U-05 Engineer lays Concrete. 01808_ Imp. Deuterium Engine destroyed. 01809_ U-05 Engineer builds a Wall. 01809_ Integration Channel disabled. 01812_ The unstable cave ceiling collapses. 01814_ U-05 Engineer builds a Wall. 01816_ K-01 Serf collects debris. 01822_ Critical hit (Burn: +37). 01827_ Slammed into Y-45 Defender. 01830_ Critical hit (Burn: +37). 01838_ Slammed into S-10 Pest. Map ----- +----------------------------------------------------+ | | | | | | | | | | | | | | | | | | | | | ?????????????????????????????????????????????????? | | ?????????????????????????????????????????????????? | | ?????????????????????????????????????????????????? | | ?????????????????????????????????????????????????? | | ?????????????????????????????????????????????????? | | ?????????????????????????????????????????????????? | | ????????# """"""" #??????????????????????????????? | | ????????# """"""" #??????????????????????????????? | | ????????# """"""" #??????????????????????????????? | | ????????# """"""" #??????????????????????????????? | | ????????? """"""" ???????????????????????????????? | | ??????????? ?????????????????????????????????? | | ??????????###+###????????????????????????????????? | | ??????????# #???????????? #??????????????????? | | ??????????# ########### w #??????????????????? | | ??????????+ ! Y s @s #??????????????????? | | ??????????# ##+######## #??????????????????? | | ??????????# # ????????? #??????????????????? | | ??????????### ### "?????????????????????????????? | | ????????????# #?#* ""????????????????????????????? | | ????????????# #?# ""????????????????????????????? | | ????????????# #?# ???????????????????????????? | | ???????????## ############ ?????????????????????? | | ???????????# ????????????????????? | | ???????????# T????????????????????? | | ???????????# "" ????????????????????? | | ??########## G" ### ?????????????????????? | | ?## # "" #?????????????????????????? | | ?# """ # #?????????????????????????? | | ??# """ # #?????????????????????????? | | ### """ # !!#?????????????????????????? | | ## + ! #?????????????????????????? | | # #?????????????????????????? | | ""T"" ### #?????????????????????????? | | """"" #?? !! #?????????????????????????? | | #?? ! #?????????????????????????? | | ######?? #"T"#####?????????????????????????? | | [% # #??????? #####?????????????????????????????? | | ! # #??????? #?????????????????????????????????? | | # ##?????? ??????????????????????????????????? | +----------------------------------------------------+ Best States ------------- Heat Dissipation 31 Energy Generation 28 Energy Capacity 490 Matter Stores 300 Matter Capacity 300 Sight Range 16 Robot Scan Range 15 Terrain Scan Density 10 Additional Mass Support 6 Armor Coverage 150 Evasion (%) 55 Item Schematics ----------------- None Robot Schematics ------------------ None Fabricated ------------ Nothing Alien Tech Used ----------------- None Achievements -------------- None Challenges ------------ None Game ------ Seed ForceMappingMatter Manual? 0 Play Time 00:27:09 Cumulative 16.2 hours Start 2023.11.17 @ 11:24:28 End 2023.11.20 @ 09:47:53 Sessions 9 Manual Loads 0 Difficulty Rogue Special Mode None Game No. 41 Rogue 41 Adventurer 0 Explorer 0 Win Type - Total 0 Types 0/0/0/0/0/0/0/0/0 Lore% 11 Gallery% 23 Achievement% 17 Wizard Run 0 Options --------- ASCII 0 Keyboard 0 Movement Vi Keybinds 0 Fullscreen 2 Font 14/TerminusBold Map View 72x54 Tactical HUD 1 Map Filters NONE Filters NONE Steam X RUN: 5a9262bc-c4aa-461b-8447-809dfbbc3dc6